{"text_format":"1","workbook":"xlsx","n_sheets":5,"sheets":["Order","Counting","Helpboard","info","specializacio"],"not_rendered":{"charts":0,"images":1,"macros":1,"external_links":0,"defined_names":0,"comments":0,"pivot_tables":0},"unopened":[],"bounds":{"document_bytes":16777216,"sheet_cells":100000,"rows_first":2000,"rows_last":500,"rows_between":2000,"halvings":0,"cell_chars":16384,"cell_head_chars":4096},"cells_cut":0,"cells_raw":0,"read":"whole","date_system":"1900"}

{"sheet":"Order","index":0,"n_rows":55,"n_cols":5,"rows_kept":55,"cut":false,"hidden":false,"merged":[]}
[{"$f":"Helpboard!A1","v":"Feltétek"},{"$f":"Helpboard!B1","v":"32 cm-es"},{"$f":"Helpboard!C1","v":"45 cm-es"},{"$f":"Helpboard!D1","v":"Eredeti Olasz"},{"$f":"Helpboard!E1","v":"Fitness"}]
[{"$f":"Helpboard!A2","v":"Paradicsomszósz"},1,null,3]
[{"$f":"Helpboard!A3","v":"Tejföl"},null,null,null,2]
[{"$f":"Helpboard!A4","v":"Barbecue-szósz"},null,3]
[{"$f":"Helpboard!A5","v":"Sajtkrém"},2,null,null,1]
[{"$f":"Helpboard!A6","v":"Tárkonyos-Tejfölös Ragu"}]
[{"$f":"Helpboard!A7","v":"Mustáros-Tejfölös Alap"}]
[{"$f":"Helpboard!A8","v":"Erős-Tejföl"}]
[{"$f":"Helpboard!A9","v":"Gyros-szósz"},null,2]
[{"$f":"Helpboard!A10","v":"Taco-szósz"},null,null,3]
[{"$f":"Helpboard!A11","v":"Bacon"},null,null,null,3]
[{"$f":"Helpboard!A12","v":"Pármai Sonka"}]
[{"$f":"Helpboard!A13","v":"Szalámi"},3]
[{"$f":"Helpboard!A14","v":"Tonhal"}]
[{"$f":"Helpboard!A15","v":"Csirkemell"},null,null,3]
[{"$f":"Helpboard!A16","v":"Kolbász"},null,null,1]
[{"$f":"Helpboard!A17","v":"Sonka"},null,3]
[{"$f":"Helpboard!A18","v":"Tarja"},null,null,null,2]
[{"$f":"Helpboard!A19","v":"Tenger Gyümölcsei"}]
[{"$f":"Helpboard!A20","v":"Marhahús"}]
[{"$f":"Helpboard!A21","v":"Virsli"},4,2]
[{"$f":"Helpboard!A22","v":"Ananász"},null,null,3]
[{"$f":"Helpboard!A23","v":"Bab"}]
[{"$f":"Helpboard!A24","v":"Brokkoli"},null,null,null,3]
[{"$f":"Helpboard!A25","v":"Gomba"}]
[{"$f":"Helpboard!A26","v":"Jalapeno"},1]
[{"$f":"Helpboard!A27","v":"Kaliforniai Paprika"},null,1,3]
[{"$f":"Helpboard!A28","v":"Koktélparadicsom"},null,null,null,2]
[{"$f":"Helpboard!A29","v":"Kukorica"}]
[{"$f":"Helpboard!A30","v":"Lilahagyma"},2]
[{"$f":"Helpboard!A31","v":"Olivabogyó"}]
[{"$f":"Helpboard!A32","v":"Paradicsom"},null,2]
[{"$f":"Helpboard!A33","v":"Póréhagyma"},null,null,null,1]
[{"$f":"Helpboard!A34","v":"Rukkola"},null,null,2]
[{"$f":"Helpboard!A35","v":"Pepperoni"}]
[{"$f":"Helpboard!A36","v":"Zöldpaprika"}]
[{"$f":"Helpboard!A37","v":"Uborka"}]
[{"$f":"Helpboard!A38","v":"Vöröshagyma"},2,null,4,1]
[{"$f":"Helpboard!A39","v":"Mozzarella"}]
[{"$f":"Helpboard!A40","v":"Parmesan"},null,2,null,1]
[{"$f":"Helpboard!A41","v":"Márványsajt"},null,null,1]
[{"$f":"Helpboard!A42","v":"Füst. Mozzarella"},1]
[{"$f":"Helpboard!A43","v":"Fetasajt"},null,1,4,1]
[{"$f":"Helpboard!A44","v":"Sajttal Töltött"},null,null,null,2]
[{"$f":"Helpboard!A45","v":"Tortilla Chips"},1,1,null,1]
[{"$f":"Helpboard!A46","v":"Oregano"},null,1,null,1]
[{"$f":"Helpboard!A47","v":"Chili"},null,1]
[]
["Legjobb választás:",{"$f":"IF(Counting!$K$8=Counting!$G$8,Counting!G10,IF(Counting!$K$8=Counting!$H$8,Counting!H10,IF(Counting!$K$8=Counting!$I$8,Counting!I10,IF(Counting!$K$8=Counting!$J$8,Counting!J10,\"\"))))","v":"Paradicsomszósz"},{"$f":"IF(Counting!$K$8=Counting!$G$8,Counting!G2,IF(Counting!$K$8=Counting!$H$8,Counting!H2,IF(Counting!$K$8=Counting!$I$8,Counting!I2,IF(Counting!$K$8=Counting!$J$8,Counting!J2,\"\"))))","v":1190}]
[null,{"$f":"IF(Counting!$K$8=Counting!$G$8,Counting!G11,IF(Counting!$K$8=Counting!$H$8,Counting!H11,IF(Counting!$K$8=Counting!$I$8,Counting!I11,IF(Counting!$K$8=Counting!$J$8,Counting!J11,\"\"))))","v":"Szalámi"},{"$f":"IF(Counting!$K$8=Counting!$G$8,Counting!G3,IF(Counting!$K$8=Counting!$H$8,Counting!H3,IF(Counting!$K$8=Counting!$I$8,Counting!I3,IF(Counting!$K$8=Counting!$J$8,Counting!J3,\"\"))))","v":450}]
[null,{"$f":"IF(Counting!$K$8=Counting!$G$8,Counting!G12,IF(Counting!$K$8=Counting!$H$8,Counting!H12,IF(Counting!$K$8=Counting!$I$8,Counting!I12,IF(Counting!$K$8=Counting!$J$8,Counting!J12,\"\"))))","v":"Lilahagyma"},{"$f":"IF(Counting!$K$8=Counting!$G$8,Counting!G4,IF(Counting!$K$8=Counting!$H$8,Counting!H4,IF(Counting!$K$8=Counting!$I$8,Counting!I4,IF(Counting!$K$8=Counting!$J$8,Counting!J4,\"\"))))","v":150}]
[null,{"$f":"IF(Counting!$K$8=Counting!$G$8,Counting!G13,IF(Counting!$K$8=Counting!$H$8,Counting!H13,IF(Counting!$K$8=Counting!$I$8,Counting!I13,IF(Counting!$K$8=Counting!$J$8,Counting!J13,\"\"))))","v":"Mozzarella"},{"$f":"IF(Counting!$K$8=Counting!$G$8,Counting!G5,IF(Counting!$K$8=Counting!$H$8,Counting!H5,IF(Counting!$K$8=Counting!$I$8,Counting!I5,IF(Counting!$K$8=Counting!$J$8,Counting!J5,\"\"))))","v":0}]
[null,{"$f":"IF(Counting!$K$8=Counting!$G$8,Counting!G14,IF(Counting!$K$8=Counting!$H$8,Counting!H14,IF(Counting!$K$8=Counting!$I$8,Counting!I14,IF(Counting!$K$8=Counting!$J$8,Counting!J14,\"\"))))","v":"Tortilla Chips"},{"$f":"IF(Counting!$K$8=Counting!$G$8,Counting!G6,IF(Counting!$K$8=Counting!$H$8,Counting!H6,IF(Counting!$K$8=Counting!$I$8,Counting!I6,IF(Counting!$K$8=Counting!$J$8,Counting!J6,\"\"))))","v":100}]
[null,{"$f":"IF(Counting!$K$8=Counting!$G$8,Counting!G15,IF(Counting!$K$8=Counting!$H$8,Counting!H15,IF(Counting!$K$8=Counting!$I$8,Counting!I15,IF(Counting!$K$8=Counting!$J$8,Counting!J15,\"\"))))","v":"Oregano"},{"$f":"IF(Counting!$K$8=Counting!$G$8,Counting!G7,IF(Counting!$K$8=Counting!$H$8,Counting!H7,IF(Counting!$K$8=Counting!$I$8,Counting!I7,IF(Counting!$K$8=Counting!$J$8,Counting!J7,\"\"))))","v":0}]
["Szumma:",{"$f":"IF(Counting!$K$8=Counting!$G$8,Counting!G1,IF(Counting!$K$8=Counting!$H$8,Counting!H1,IF(Counting!$K$8=Counting!$I$8,Counting!I1,IF(Counting!$K$8=Counting!$J$8,Counting!J2,\"\"))))","v":"32 cm-es"},{"$f":"SUM(C49:C54)","v":1890}]

{"sheet":"Counting","index":1,"n_rows":47,"n_cols":11,"rows_kept":47,"cut":false,"hidden":false,"merged":[]}
[{"$f":"Helpboard!A1","v":"Feltétek"},{"$f":"Helpboard!B1","v":"32 cm-es"},{"$f":"Helpboard!C1","v":"45 cm-es"},{"$f":"Helpboard!D1","v":"Eredeti Olasz"},{"$f":"Helpboard!E1","v":"Fitness"},null,{"$f":"B1","v":"32 cm-es"},{"$f":"C1","v":"45 cm-es"},{"$f":"D1","v":"Eredeti Olasz"},{"$f":"E1","v":"Fitness"}]
[{"$f":"Helpboard!A2","v":"Paradicsomszósz"},{"$f":"Order!B2*Helpboard!B2","v":1190},{"$f":"Order!C2*Helpboard!C2","v":0},{"$f":"Order!D2*Helpboard!D2","v":3645},{"$f":"Order!E2*Helpboard!E2","v":0},"Alap",{"$f":"SMALL(B2:B10, 8)","v":1190},{"$f":"SMALL(C2:C10, 8)","v":4480},{"$f":"SMALL(D2:D10, 8)","v":3645},{"$f":"SMALL(E2:E10, 8)","v":1390}]
[{"$f":"Helpboard!A3","v":"Tejföl"},{"$f":"Order!B3*Helpboard!B3","v":0},{"$f":"Order!C3*Helpboard!C3","v":0},{"$f":"Order!D3*Helpboard!D3","v":0},{"$f":"Order!E3*Helpboard!E3","v":2680},"Hús",{"$f":"SMALL(B11:B21, 10)","v":450},{"$f":"SMALL(C11:C21, 10)","v":500},{"$f":"SMALL(D11:D21, 10)","v":150},{"$f":"SMALL(E11:E21, 10)","v":450}]
[{"$f":"Helpboard!A4","v":"Barbecue-szósz"},{"$f":"Order!B4*Helpboard!B4","v":0},{"$f":"Order!C4*Helpboard!C4","v":6570},{"$f":"Order!D4*Helpboard!D4","v":0},{"$f":"Order!E4*Helpboard!E4","v":0},"Zöldség",{"$f":"SMALL(B22:B38, 16)","v":150},{"$f":"SMALL(C22:C38, 16)","v":125},{"$f":"SMALL(D22:D38, 16)","v":300},{"$f":"SMALL(E22:E38, 16)","v":250}]
[{"$f":"Helpboard!A5","v":"Sajtkrém"},{"$f":"Order!B5*Helpboard!B5","v":2480},{"$f":"Order!C5*Helpboard!C5","v":0},{"$f":"Order!D5*Helpboard!D5","v":0},{"$f":"Order!E5*Helpboard!E5","v":1390},"Sajt",{"$f":"SMALL(B39:B44, 5)","v":0},{"$f":"SMALL(C39:C44, 5)","v":100},{"$f":"SMALL(D39:D44, 5)","v":100},{"$f":"SMALL(E39:E44, 5)","v":75}]
[{"$f":"Helpboard!A6","v":"Tárkonyos-Tejfölös Ragu"},{"$f":"Order!B6*Helpboard!B6","v":0},{"$f":"Order!C6*Helpboard!C6","v":0},{"$f":"Order!D6*Helpboard!D6","v":0},{"$f":"Order!E6*Helpboard!E6","v":0},"Extra",{"$f":"SMALL(B45:B45, 1)","v":100},{"$f":"SMALL(C45:C45, 1)","v":250},{"$f":"SMALL(D45:D45, 1)","v":0},{"$f":"SMALL(E45:E45, 1)","v":100}]
[{"$f":"Helpboard!A7","v":"Mustáros-Tejfölös Alap"},{"$f":"Order!B7*Helpboard!B7","v":0},{"$f":"Order!C7*Helpboard!C7","v":0},{"$f":"Order!D7*Helpboard!D7","v":0},{"$f":"Order!E7*Helpboard!E7","v":0},"Fűszer",{"$f":"SMALL(B46:B47, 1)","v":0},{"$f":"SMALL(C46:C47, 1)","v":50},{"$f":"SMALL(D46:D47, 1)","v":0},{"$f":"SMALL(E46:E47, 1)","v":0},"Legkisebb rendelés:"]
[{"$f":"Helpboard!A8","v":"Erős-Tejföl"},{"$f":"Order!B8*Helpboard!B8","v":0},{"$f":"Order!C8*Helpboard!C8","v":0},{"$f":"Order!D8*Helpboard!D8","v":0},{"$f":"Order!E8*Helpboard!E8","v":0},"Szumma",{"$f":"SUM(G2:G7)","v":1890},{"$f":"SUM(H2:H7)","v":5505},{"$f":"SUM(I2:I7)","v":4195},{"$f":"SUM(J2:J7)","v":2265},{"$f":"MIN(G8:J8)","v":1890}]
[{"$f":"Helpboard!A9","v":"Gyros-szósz"},{"$f":"Order!B9*Helpboard!B9","v":0},{"$f":"Order!C9*Helpboard!C9","v":4480},{"$f":"Order!D9*Helpboard!D9","v":0},{"$f":"Order!E9*Helpboard!E9","v":0},null,{"$f":"B1","v":"32 cm-es"},{"$f":"C1","v":"45 cm-es"},{"$f":"D1","v":"Eredeti Olasz"},{"$f":"E1","v":"Fitness"}]
[{"$f":"Helpboard!A10","v":"Taco-szósz"},{"$f":"Order!B10*Helpboard!B10","v":0},{"$f":"Order!C10*Helpboard!C10","v":0},{"$f":"Order!D10*Helpboard!D10","v":3795},{"$f":"Order!E10*Helpboard!E10","v":0},"Alap",{"$f":"INDEX($A$2:$E$10,MATCH(G2,B2:B10,0),1)","v":"Paradicsomszósz"},{"$f":"INDEX($A$2:$E$10,MATCH(H2,C2:C10,0),1)","v":"Gyros-szósz"},{"$f":"INDEX($A$2:$E$10,MATCH(I2,D2:D10,0),1)","v":"Paradicsomszósz"},{"$f":"INDEX($A$2:$E$10,MATCH(J2,E2:E10,0),1)","v":"Sajtkrém"}]
[{"$f":"Helpboard!A11","v":"Bacon"},{"$f":"Order!B11*Helpboard!B11","v":0},{"$f":"Order!C11*Helpboard!C11","v":0},{"$f":"Order!D11*Helpboard!D11","v":0},{"$f":"Order!E11*Helpboard!E11","v":525},"Hús",{"$f":"INDEX($A$11:$E$21,MATCH(G3,B11:B21,0),1)","v":"Szalámi"},{"$f":"INDEX($A$11:$E$21,MATCH(H3,C11:C21,0),1)","v":"Virsli"},{"$f":"INDEX($A$11:$E$21,MATCH(I3,D11:D21,0),1)","v":"Kolbász"},{"$f":"INDEX($A$11:$E$21,MATCH(J3,E11:E21,0),1)","v":"Tarja"}]
[{"$f":"Helpboard!A12","v":"Pármai Sonka"},{"$f":"Order!B12*Helpboard!B12","v":0},{"$f":"Order!C12*Helpboard!C12","v":0},{"$f":"Order!D12*Helpboard!D12","v":0},{"$f":"Order!E12*Helpboard!E12","v":0},"Zöldség",{"$f":"INDEX($A$22:$E$38,MATCH(G4,B22:B38,0),1)","v":"Lilahagyma"},{"$f":"INDEX($A$22:$E$38,MATCH(H4,C22:C38,0),1)","v":"Kaliforniai Paprika"},{"$f":"INDEX($A$22:$E$38,MATCH(I4,D22:D38,0),1)","v":"Ananász"},{"$f":"INDEX($A$22:$E$38,MATCH(J4,E22:E38,0),1)","v":"Koktélparadicsom"}]
[{"$f":"Helpboard!A13","v":"Szalámi"},{"$f":"Order!B13*Helpboard!B13","v":450},{"$f":"Order!C13*Helpboard!C13","v":0},{"$f":"Order!D13*Helpboard!D13","v":0},{"$f":"Order!E13*Helpboard!E13","v":0},"Sajt",{"$f":"INDEX($A$39:$E$44,MATCH(G5,B39:B44,0),1)","v":"Mozzarella"},{"$f":"INDEX($A$39:$E$44,MATCH(H5,C39:C44,0),1)","v":"Fetasajt"},{"$f":"INDEX($A$39:$E$44,MATCH(I5,D39:D44,0),1)","v":"Márványsajt"},{"$f":"INDEX($A$39:$E$44,MATCH(J5,E39:E44,0),1)","v":"Parmesan"}]
[{"$f":"Helpboard!A14","v":"Tonhal"},{"$f":"Order!B14*Helpboard!B14","v":0},{"$f":"Order!C14*Helpboard!C14","v":0},{"$f":"Order!D14*Helpboard!D14","v":0},{"$f":"Order!E14*Helpboard!E14","v":0},"Extra",{"$f":"INDEX($A$45:$E$45,MATCH(G6,B45:B45,0),1)","v":"Tortilla Chips"},{"$f":"INDEX($A$45:$E$45,MATCH(H6,C45:C45,0),1)","v":"Tortilla Chips"},{"$f":"INDEX($A$45:$E$45,MATCH(I6,D45:D45,0),1)","v":"Tortilla Chips"},{"$f":"INDEX($A$45:$E$45,MATCH(J6,E45:E45,0),1)","v":"Tortilla Chips"}]
[{"$f":"Helpboard!A15","v":"Csirkemell"},{"$f":"Order!B15*Helpboard!B15","v":0},{"$f":"Order!C15*Helpboard!C15","v":0},{"$f":"Order!D15*Helpboard!D15","v":600},{"$f":"Order!E15*Helpboard!E15","v":0},"Fűszer",{"$f":"INDEX($A$46:$E$47,MATCH(G7,B46:B47,0),1)","v":"Oregano"},{"$f":"INDEX($A$46:$E$47,MATCH(H7,C46:C47,0),1)","v":"Oregano"},{"$f":"INDEX($A$46:$E$47,MATCH(I7,D46:D47,0),1)","v":"Oregano"},{"$f":"INDEX($A$46:$E$47,MATCH(J7,E46:E47,0),1)","v":"Chili"}]
[{"$f":"Helpboard!A16","v":"Kolbász"},{"$f":"Order!B16*Helpboard!B16","v":0},{"$f":"Order!C16*Helpboard!C16","v":0},{"$f":"Order!D16*Helpboard!D16","v":150},{"$f":"Order!E16*Helpboard!E16","v":0}]
[{"$f":"Helpboard!A17","v":"Sonka"},{"$f":"Order!B17*Helpboard!B17","v":0},{"$f":"Order!C17*Helpboard!C17","v":750},{"$f":"Order!D17*Helpboard!D17","v":0},{"$f":"Order!E17*Helpboard!E17","v":0}]
[{"$f":"Helpboard!A18","v":"Tarja"},{"$f":"Order!B18*Helpboard!B18","v":0},{"$f":"Order!C18*Helpboard!C18","v":0},{"$f":"Order!D18*Helpboard!D18","v":0},{"$f":"Order!E18*Helpboard!E18","v":450}]
[{"$f":"Helpboard!A19","v":"Tenger Gyümölcsei"},{"$f":"Order!B19*Helpboard!B19","v":0},{"$f":"Order!C19*Helpboard!C19","v":0},{"$f":"Order!D19*Helpboard!D19","v":0},{"$f":"Order!E19*Helpboard!E19","v":0}]
[{"$f":"Helpboard!A20","v":"Marhahús"},{"$f":"Order!B20*Helpboard!B20","v":0},{"$f":"Order!C20*Helpboard!C20","v":0},{"$f":"Order!D20*Helpboard!D20","v":0},{"$f":"Order!E20*Helpboard!E20","v":0}]
[{"$f":"Helpboard!A21","v":"Virsli"},{"$f":"Order!B21*Helpboard!B21","v":600},{"$f":"Order!C21*Helpboard!C21","v":500},{"$f":"Order!D21*Helpboard!D21","v":0},{"$f":"Order!E21*Helpboard!E21","v":0}]
[{"$f":"Helpboard!A22","v":"Ananász"},{"$f":"Order!B22*Helpboard!B22","v":0},{"$f":"Order!C22*Helpboard!C22","v":0},{"$f":"Order!D22*Helpboard!D22","v":300},{"$f":"Order!E22*Helpboard!E22","v":0}]
[{"$f":"Helpboard!A23","v":"Bab"},{"$f":"Order!B23*Helpboard!B23","v":0},{"$f":"Order!C23*Helpboard!C23","v":0},{"$f":"Order!D23*Helpboard!D23","v":0},{"$f":"Order!E23*Helpboard!E23","v":0}]
[{"$f":"Helpboard!A24","v":"Brokkoli"},{"$f":"Order!B24*Helpboard!B24","v":0},{"$f":"Order!C24*Helpboard!C24","v":0},{"$f":"Order!D24*Helpboard!D24","v":0},{"$f":"Order!E24*Helpboard!E24","v":300}]
[{"$f":"Helpboard!A25","v":"Gomba"},{"$f":"Order!B25*Helpboard!B25","v":0},{"$f":"Order!C25*Helpboard!C25","v":0},{"$f":"Order!D25*Helpboard!D25","v":0},{"$f":"Order!E25*Helpboard!E25","v":0}]
[{"$f":"Helpboard!A26","v":"Jalapeno"},{"$f":"Order!B26*Helpboard!B26","v":50},{"$f":"Order!C26*Helpboard!C26","v":0},{"$f":"Order!D26*Helpboard!D26","v":0},{"$f":"Order!E26*Helpboard!E26","v":0}]
[{"$f":"Helpboard!A27","v":"Kaliforniai Paprika"},{"$f":"Order!B27*Helpboard!B27","v":0},{"$f":"Order!C27*Helpboard!C27","v":125},{"$f":"Order!D27*Helpboard!D27","v":225},{"$f":"Order!E27*Helpboard!E27","v":0}]
[{"$f":"Helpboard!A28","v":"Koktélparadicsom"},{"$f":"Order!B28*Helpboard!B28","v":0},{"$f":"Order!C28*Helpboard!C28","v":0},{"$f":"Order!D28*Helpboard!D28","v":0},{"$f":"Order!E28*Helpboard!E28","v":250}]
[{"$f":"Helpboard!A29","v":"Kukorica"},{"$f":"Order!B29*Helpboard!B29","v":0},{"$f":"Order!C29*Helpboard!C29","v":0},{"$f":"Order!D29*Helpboard!D29","v":0},{"$f":"Order!E29*Helpboard!E29","v":0}]
[{"$f":"Helpboard!A30","v":"Lilahagyma"},{"$f":"Order!B30*Helpboard!B30","v":150},{"$f":"Order!C30*Helpboard!C30","v":0},{"$f":"Order!D30*Helpboard!D30","v":0},{"$f":"Order!E30*Helpboard!E30","v":0}]
[{"$f":"Helpboard!A31","v":"Olivabogyó"},{"$f":"Order!B31*Helpboard!B31","v":0},{"$f":"Order!C31*Helpboard!C31","v":0},{"$f":"Order!D31*Helpboard!D31","v":0},{"$f":"Order!E31*Helpboard!E31","v":0}]
[{"$f":"Helpboard!A32","v":"Paradicsom"},{"$f":"Order!B32*Helpboard!B32","v":0},{"$f":"Order!C32*Helpboard!C32","v":250},{"$f":"Order!D32*Helpboard!D32","v":0},{"$f":"Order!E32*Helpboard!E32","v":0}]
[{"$f":"Helpboard!A33","v":"Póréhagyma"},{"$f":"Order!B33*Helpboard!B33","v":0},{"$f":"Order!C33*Helpboard!C33","v":0},{"$f":"Order!D33*Helpboard!D33","v":0},{"$f":"Order!E33*Helpboard!E33","v":100}]
[{"$f":"Helpboard!A34","v":"Rukkola"},{"$f":"Order!B34*Helpboard!B34","v":0},{"$f":"Order!C34*Helpboard!C34","v":0},{"$f":"Order!D34*Helpboard!D34","v":100},{"$f":"Order!E34*Helpboard!E34","v":0}]
[{"$f":"Helpboard!A35","v":"Pepperoni"},{"$f":"Order!B35*Helpboard!B35","v":0},{"$f":"Order!C35*Helpboard!C35","v":0},{"$f":"Order!D35*Helpboard!D35","v":0},{"$f":"Order!E35*Helpboard!E35","v":0}]
[{"$f":"Helpboard!A36","v":"Zöldpaprika"},{"$f":"Order!B36*Helpboard!B36","v":0},{"$f":"Order!C36*Helpboard!C36","v":0},{"$f":"Order!D36*Helpboard!D36","v":0},{"$f":"Order!E36*Helpboard!E36","v":0}]
[{"$f":"Helpboard!A37","v":"Uborka"},{"$f":"Order!B37*Helpboard!B37","v":0},{"$f":"Order!C37*Helpboard!C37","v":0},{"$f":"Order!D37*Helpboard!D37","v":0},{"$f":"Order!E37*Helpboard!E37","v":0}]
[{"$f":"Helpboard!A38","v":"Vöröshagyma"},{"$f":"Order!B38*Helpboard!B38","v":150},{"$f":"Order!C38*Helpboard!C38","v":0},{"$f":"Order!D38*Helpboard!D38","v":300},{"$f":"Order!E38*Helpboard!E38","v":100}]
[{"$f":"Helpboard!A39","v":"Mozzarella"},{"$f":"Order!B39*Helpboard!B39","v":0},{"$f":"Order!C39*Helpboard!C39","v":0},{"$f":"Order!D39*Helpboard!D39","v":0},{"$f":"Order!E39*Helpboard!E39","v":0}]
[{"$f":"Helpboard!A40","v":"Parmesan"},{"$f":"Order!B40*Helpboard!B40","v":0},{"$f":"Order!C40*Helpboard!C40","v":200},{"$f":"Order!D40*Helpboard!D40","v":0},{"$f":"Order!E40*Helpboard!E40","v":75}]
[{"$f":"Helpboard!A41","v":"Márványsajt"},{"$f":"Order!B41*Helpboard!B41","v":0},{"$f":"Order!C41*Helpboard!C41","v":0},{"$f":"Order!D41*Helpboard!D41","v":100},{"$f":"Order!E41*Helpboard!E41","v":0}]
[{"$f":"Helpboard!A42","v":"Füst. Mozzarella"},{"$f":"Order!B42*Helpboard!B42","v":25},{"$f":"Order!C42*Helpboard!C42","v":0},{"$f":"Order!D42*Helpboard!D42","v":0},{"$f":"Order!E42*Helpboard!E42","v":0}]
[{"$f":"Helpboard!A43","v":"Fetasajt"},{"$f":"Order!B43*Helpboard!B43","v":0},{"$f":"Order!C43*Helpboard!C43","v":100},{"$f":"Order!D43*Helpboard!D43","v":200},{"$f":"Order!E43*Helpboard!E43","v":75}]
[{"$f":"Helpboard!A44","v":"Sajttal Töltött"},{"$f":"Order!B44*Helpboard!B44","v":0},{"$f":"Order!C44*Helpboard!C44","v":0},{"$f":"Order!D44*Helpboard!D44","v":0},{"$f":"Order!E44*Helpboard!E44","v":500}]
[{"$f":"Helpboard!A45","v":"Tortilla Chips"},{"$f":"Order!B45*Helpboard!B45","v":100},{"$f":"Order!C45*Helpboard!C45","v":250},{"$f":"Order!D45*Helpboard!D45","v":0},{"$f":"Order!E45*Helpboard!E45","v":100}]
[{"$f":"Helpboard!A46","v":"Oregano"},{"$f":"Order!B46*Helpboard!B46","v":0},{"$f":"Order!C46*Helpboard!C46","v":50},{"$f":"Order!D46*Helpboard!D46","v":0},{"$f":"Order!E46*Helpboard!E46","v":25}]
[{"$f":"Helpboard!A47","v":"Chili"},{"$f":"Order!B47*Helpboard!B47","v":0},{"$f":"Order!C47*Helpboard!C47","v":50},{"$f":"Order!D47*Helpboard!D47","v":0},{"$f":"Order!E47*Helpboard!E47","v":0}]

{"sheet":"Helpboard","index":2,"n_rows":47,"n_cols":5,"rows_kept":47,"cut":false,"hidden":false,"merged":[]}
["Feltétek","32 cm-es","45 cm-es","Eredeti Olasz","Fitness"]
["Paradicsomszósz",1190,2190,1215,1340]
["Tejföl",1190,2190,1215,1340]
["Barbecue-szósz",1190,2190,1215,1340]
["Sajtkrém",1240,2240,1265,1390]
["Tárkonyos-Tejfölös Ragu",1290,2290,1315,1440]
["Mustáros-Tejfölös Alap",1190,2190,1215,1340]
["Erős-Tejföl",1190,2190,1215,1340]
["Gyros-szósz",1240,2240,1265,1390]
["Taco-szósz",1240,2240,1265,1390]
["Bacon",150,250,150,175]
["Pármai Sonka",300,400,300,325]
["Szalámi",150,250,150,175]
["Tonhal",250,350,250,275]
["Csirkemell",200,300,200,225]
["Kolbász",150,250,150,175]
["Sonka",150,250,150,175]
["Tarja",200,300,200,225]
["Tenger Gyümölcsei",300,400,300,325]
["Marhahús",250,350,250,275]
["Virsli",150,250,150,175]
["Ananász",100,150,100,125]
["Bab",50,100,50,75]
["Brokkoli",75,125,75,100]
["Gomba",100,150,100,125]
["Jalapeno",50,100,50,75]
["Kaliforniai Paprika",75,125,75,100]
["Koktélparadicsom",100,150,100,125]
["Kukorica",50,100,50,75]
["Lilahagyma",75,125,75,100]
["Olivabogyó",100,150,100,125]
["Paradicsom",75,125,75,100]
["Póréhagyma",75,125,75,100]
["Rukkola",50,100,50,75]
["Pepperoni",50,100,50,75]
["Zöldpaprika",50,100,50,75]
["Uborka",75,125,75,100]
["Vöröshagyma",75,125,75,100]
["Mozzarella",0,0,0,25]
["Parmesan",50,100,50,75]
["Márványsajt",100,150,100,125]
["Füst. Mozzarella",25,75,25,50]
["Fetasajt",50,100,50,75]
["Sajttal Töltött",200,350,175,250]
["Tortilla Chips",100,250,100,100]
["Oregano",25,50,25,25]
["Chili",25,50,25,25]

{"sheet":"info","index":3,"n_rows":34,"n_cols":1,"rows_kept":34,"cut":false,"hidden":false,"merged":[]}
["1. Helpboard célja:"]
[]
["Segíti a \"Counting\" munkalap számításait, illetve a \"Counting\" innen veszi azokat az információkat, amiket felhasznál az \"Order\" munkalap során."]
[]
["A \"Helpboard\"-ra egy 47x5 dimenziós mátrixban feltöltheto a \"webshop\", vagyis bármilyen jellegu tartalom egy ekkora méretu formátumban."]
[]
["2. Counting célja:"]
[]
["A \"Helpboard\" tartalma alapján elkészít egy összegzotáblázatot, illetve manuálisan elkészítve /egyelore/ egy eredménymellékletet (G9:J15)."]
[]
["Az \"Order\" alapján kikalkulálja az összegzés alapján az adott eredményt, illetve visszajátsza ezt az \"Order\" felületére."]
[]
["3. Order célja:"]
[]
["Gyakorlatilag ez az a felület, amivel a felhasználó kommunikál, megadható mibol-mennyi termékre van igénye."]
[]
["Az igény alapján kalkulálható, mely igény a legjobb választás számára, ez által a legolcsóbb ár is megjelenésre kerül."]
[]
["4. Macro célja:"]
[]
["A makró teljes célja egy olyan minimalista, egyszerusített vásárlói felület létrehozása, ami az input adatok alapján kikalkulálja a \"kosár\" alapján, hogy mi a legolcsóbb választás a vásárlószámára."]
[]
["5. Jövőkép:"]
[]
["Következésképp, szükséges a jövoben az egyelore manuálisan bevitt adatok automatizálása, illetve a következo félév célja: Globalizálás."]
[]
["Globalizálás alatt; egy olyan formátum, vagy típus elkészítése amely szabadon mozgatható bármilyen számítógép között, az erre alkalmas minoségben. /akár felho, akár portable/"]
[]
["Kritika: A jelenleg leginkább előnyösnek tűnő végeredmény nem más, mint n alternatíva közül a legolcsóbb fellelése.\nEnnek keresése azonban nem világos, hogy kinek (döntéshozó) milyen élethelyzetében releváns?\nHa olcsón akar enni valaki, akkor fordítva gondolkodik, vagyis nem a megrendelő lapról indul el, hanem az ártáblázatból és kiválasztja a quasi azonos hasznosítású termékcsoportokból a legolcsóbbat - majd rendel annyit, amennyi kell...\nMás megfogalmazásban: az order oldal adatai nem hasznosulnak valósághűen! Nem lesz leszállítva a megrendelt ételmennyiség, hanem ki lesz jelölve valamiféle minimális verzió... De hányan maradnak éhesek pénzzel teli zsebbel? Vagy hányan esznek mást, mint szerettek volna?"]
[]
["Cím: Csoportos pizza-rendelés bekerülési költségének minimalizálása"]
["Szerző: Hidvégi Attila"]
["Kiadvány: MIAÚ"]
["Sorozat MIAÚ Nr257 (2020. január)"]

{"sheet":"specializacio","index":4,"n_rows":8,"n_cols":1,"rows_kept":8,"cut":false,"hidden":false,"merged":[]}
["Ez a feladat a KJE Gazdasági Informatika Specializációja keretében készült a félévente 4+4 tantárgyat átfogó képzés első szemesztere után. "]
["A publikus feladatok a MIAÚ Nr257 alatt találhatók: https://miau.my-x.hu/miau2009/index.php3?x=miau128&where[indexkod]=miau257"]
["A specializáció célja világos célcsoportok számára hasznosságot ígérő (automatizálás által is érintett) feladatok felismerése, megoldása – lehetőség szerint alternatív megoldások összehasonlításával, részletes minőségbiztosítási elvárásokkal való szembesülés és a szubjektivitás minimalizálása mellett. A specializáció keretében jegyet csak publikációra alkalmas önálló feladattal lehet szerezni. A publikációk a szakdolgozatokra/TDK-dolgozatokra való interdiszciplináris felkészülést is támogatják. A szöveges dokumentáció szoftver-specifikációk alapjaként is szolgálhat programozási gyakorló feladatok kiadásakor."]
[]
["(hozzáférés tekintetében korlátozott háttér-anyagok: \nhttps://miau.my-x.hu/miau/257/digeco/pizza)"]
[]
[]
["tovább"]